{"text_format":"3","workbook":"xlsx","n_sheets":3,"sheets":["Instrukcja wypełniania DPAE","DPAE","Arkusz 1"],"not_rendered":{"images":1,"defined_names":3},"read":"whole","date_system":"1900"}

{"sheet":"Instrukcja wypełniania DPAE","index":0,"n_rows":23,"n_cols":2,"rows_kept":23,"merged":[[0,0,0,17],[1,1,1,17],[2,1,2,17],[3,1,3,17],[4,1,4,17],[5,1,5,17],[6,1,6,17],[7,1,7,17],[8,1,8,17],[9,1,9,17],[10,1,10,17],[11,1,11,17],[12,1,12,17],[13,1,13,17],[14,1,14,17],[16,1,16,17],[17,1,17,17],[18,1,18,17],[20,1,20,17],[21,1,21,17],[22,1,22,17]]}
["INSTRUKCJA WYPEŁNIANIA DOKUMENTU PODSUMOWUJĄCEGO AUDYT ENERGETYCZNY \nSkładanego jako załącznik do wniosku o płatność w ramach programu priorytetowego \"Czyste Powietrze\""]
["1.","W Dokumencie należy wypełniać jedynie pola w kolorze białym, z wyjątkiem sytuacji opisanych poniżej w pkt 5.4 i 5.5 poniżej (pola w kolorze jasnożółtym lub jasnozielonym)."]
["2.","Pola w odcieniach szarości, a także pola w kolorze żółtym i zielonym zawierające jednostki nie powinny być wypełniane."]
["3.","Sekcja I Dane o budynku mieszkalnym / lokalu mieszkalnym"]
["3.1","W sekcji należy podać dane dot. budynku / lokalu mieszkalnego."]
["4.","W sekcji II. Zakres rzeczowy wchodzący w skład wariantu optymalnego z audytu energetycznego (wariantu wybranego do realizacji przez audytora) należy wpisywać przedsięzięcia/ulepszenia/usprawnienia wskazane do realizacji w wariancie optymalnym. Przedsięzięcia te powinny być ujęte w sposób skrótowy/hasłowy, a jednocześnie powinny umożliwiać w prosty sposób weryfikację pojęć z pojęciami wpisanymi do audytu energetycznego, np.: modernizacja systemu grzewczego i systemu przygotowania ciepłej wody użytkowej."]
["4.2","Jeżeli audyt energetyczny uwzględnia instalację kolektorów słonecznych lub fotowoltaiki należy podać odpowiednio powierzchnię/moc instalacji."]
["5.","Sekcja III. Wskaźniki rocznego zapotrzebowania na ciepło do ogrzewania budynku "]
["5.1","Należy podać główne źródło ciepła wykorzystywane na potrzeby ogrzewania przed termomodernizacją i po termomodernizacji - źródło należy wybrać z listy rozwijanej."]
["5.2","Następnie należy podać wartość zapotrzebowania na energię użytkową EU do ogrzewania budunku przed termomodernizacją i po termomodernizacji. \nW audycie jest to wskaźnik rocznego zapotrzebowania na ciepło do ogrzewania budynku (bez uwzględnienia sprawności systemu grzewczego i przerw w ogrzewaniu) [kWh/(m2*rok)]. \nJeżeli wartość EU po termomodernizacji jest wyższa niż 80 kWh/(m2*rok) - wartość podświetla się na czerwono. Nie stanowi to o błędzie pod warunkiem spełnienia redukcji EU na poziomie min. 40%. \nJeżeli redukcja EU jest mniejsza niż 40% - wartość wyświetla się na czerwono. Nie stanowi to o błędzie pod warunkiem osiągnięcia wartość EU na poziomie min. 80 kWh/(m2*rok)."]
["5.3","Należy podać wartość zapotrzebowania na energię końcową EK do ogrzewania budynku, która została obliczona w audycie energetycznym.\nW audycie jest to wskaźnik rocznego zapotrzebowania na ciepło do ogrzewania budynku (z uwzględnienia sprawności systemu grzewczego i przerw w ogrzewaniu) [kWh/(m2*rok)]. "]
["5.4","Następnie należy odpowiedzieć na pytanie: czy wartość zapotrzebowania na energię pierwotną EP do ogrzewania budynku została obliczona w audycie energetycznym? \nJeżeli w ramach audytu energetycznego zostały obliczone te wrtości - należy je wpisać w pola E28 i G28. W przeciwnym wypadku wartości zostaną wyliczone automatycznie."]
["5.5","Następnie należy odpowiedzić na pytania: Czy wartość redukcji emisji PM10/BaP/CO2 zostały wyliczone w audycie energetycznym. Jeżeli w ramach audytu energetycznego zostały obliczone te wartości - należy je wpisać odpowiednio w pola E34, E35 lub E36. W przeciwnym wypadku wartości zostaną wyliczone automatycznie."]
["6.","Sekcja IV. Wyliczenie efektów energetycznych i ekologicznych "]
["6.1","W tej sekcji wartości wyliczane są automatycznie."]
[]
["7.","W sekcji V. Oświadczenia Audytora należy wpisać datę przekazania audytu energetycznego Beneficjentowi."]
["8.","W sekcji VI. Uwagi, komentarze, podpis Audytor ma możliwość zamieszczenie dodatkowych informacji dla Beneficjenta lub wojewódzkich funduszy ochrony środowiska i gospodarki wodnej."]
["9.","W sekcji VI. Uwagi, komentarze, podpis wymagany jest podpis Audytora. \nW sytuacji gdy Audytor podpisuje Dokument elektronicznie, w polu tym należy wpisać imię i nazwisko Audytora oraz dodać \"PODPISANY ELEKTRONICZNIE\". Następnie Dokument należy podpisać elektronicznie.\nW innym przypadku należy wydrukować Dokument i podpisać go ręcznie."]
[]
["10.","Do wniosku o płatność należy załączyć Dokument ppodsumowujący audyt energetyczny w wersji edytowalnej oraz w wersji podpisanej - np.. jako skan podpisanego dokumentu, plik pdf podpisany elektronicznie, plik typu .zip z plikami podpisanymi i plikami podpisu."]
["11.","Dokument podsumowujący audyt energetyczny potwierdza osiągnięcie co najmniej jednego ze wskaźników kompleksowej termomodernizacji (jako jednego z warunków przyznania dofinansowania w ramach programu priorytetowego \"Czyste Powietrze\" t.j. \na) zmniejszenie zapotrzebowania na energię użytkową do 80 kWh/(m2*rok) lub\nb) zmniejszenie zapotrzebowania na energię użytkową o minimum 40% \njeżeli pole walidacji jest w kolorze zielonym i wyświetla zapis: \"Na podstawie niniejszego Dokumentu podsumowującego audyt energetyczny stwierdza się możliwość przyznania dotacji do przedsięwzięcia z kompleksową termomodernizacją budynku/lokalu mieszkalnego.\" \nWyświetlanie powyższego komunikatu nie jest jednoznaczne z przyznaniem dofinansowania na kompleksową termomodernizację."]
["12.","Uwaga! Pola z błędami są oznaczone na czerwono z różowym tłem."]

{"sheet":"DPAE","index":1,"n_rows":55,"n_cols":35,"rows_kept":55,"merged":[[0,0,0,8],[1,0,1,8],[2,7,2,8],[3,5,3,8],[4,7,4,8],[5,0,5,1],[5,4,5,6],[5,7,5,8],[6,0,6,8],[18,0,18,8],[19,1,19,6],[20,1,20,6],[21,0,21,8],[22,0,23,0],[22,1,23,1],[22,4,22,5],[22,6,22,7],[22,8,23,8],[24,4,24,5],[24,6,24,8],[31,0,31,8],[40,0,40,8],[41,1,41,6],[42,1,42,8],[44,0,44,3],[44,4,44,8],[45,0,45,3],[45,4,45,8],[46,0,46,3],[46,4,46,8],[47,0,47,3],[47,4,47,8],[48,0,48,8],[49,0,49,8],[50,0,50,8],[51,0,51,8],[52,0,52,8],[53,0,53,8],[54,0,56,8]]}
["DOKUMENT PODSUMOWUJĄCY AUDYT ENERGETYCZNY\nPODSUMOWANIE OBLICZEŃ AUDTOWYCH Z WYLICZENIEM EFEKTÓW ENERGETYCZNYCH I EKOLOGICZNYCH\nZAŁĄCZNIK DO WNIOSKU O PŁATNOŚĆ W RAMACH PROGRAMU PRIORYTETOWEGO CZYSTE POWIETRZE \nNiniejszy dokument nie stanowi audytu energetycznego, a jest jedynie jego podsumowaniem. Oryginalny audyt energetyczny powinien być przechowywany przez Beneficjenta i udostępniany do kontroli \nprzez Wojewódzki Fundusz Ochrony Środowiska i Gospodarki Wodnej właściwy ze względu na lokalizację budynku/lokalu mieszkalnego, którego dotyczy, lub przez inny podmiot wskazany w umowie dotacji."]
["I. Dane o budynku mieszkalnym / lokalu mieszkalnym",{"$nulls":33},"TAK"]
[{"$nulls":4},"Kod pocztowy",null,"Miejscowość"]
["Adres budynku jednorodzinnego mieszkalnego / lokalu mieszkalnego",{"$nulls":3},"Ulica"]
[{"$nulls":4},"Nr budynku",null,"Nr lokalu"]
["Powierzchnia użytkowa budynku",{"$nulls":6},"m2"]
[" II. Zakres rzeczowy wchodzący w skład wariantu optymalnego z audytu energetycznego (wariantu wybranego do realizacji przez audytora) 1)  "]
["1.","Np. Modernizacja systemu grzewczego i systemu przygotowania ciepłej wody użytkowej"]
["2.","Np. Modernizacja przegrody ściana zewnętrzna piwnica i parter"]
["3."]
["4."]
["5."]
["6."]
["7."]
["8."]
["9."]
["10."]
["11."]
["Odnawialne Źródła Energii (OZE) - jeśli dotyczy:"]
["1.","Kolektory słoneczne o powierzchni:",{"$nulls":6},"m2    "]
["2.","Instalacja fotowoltaiczna (PV) o mocy:",{"$nulls":6},"kWp"]
["III. Wskaźniki rocznego zapotrzebowania na ciepło do ogrzewania budynku i redukcji niektórych emisji - zgodnie z audytem energetycznym."]
[{"$nulls":4},"Przed termomodernizacją:",null,"Po termomodernizacji:",null,"Redukcja \nw [%]"]
[{"$nulls":4},"Wartość","Jednostka","Wartość","Jednostka"]
["1.","Główne źródło ciepła",{"$nulls":7},{"$f":"AND(G25='Arkusz 1'!$C$17,E25='Arkusz 1'!$C$4)","v":false}]
["2.","Zapotrzebowanie na energię użytkową EU(H+W)  do ogrzewania budynku 2)",{"$nulls":3},"kWh/(m2*rok)",null,"kWh/(m2*rok)",{"$f":"IF(E26=\"\",\"\",IF(G26=\"\",\"\",ROUND((E26-G26)/E26,2)))","v":""},{"$f":"AND(G26>80,I26<0.4)","v":false}]
["3.","Zapotrzebowanie na energią końcową EK(H+W)  do ogrzewania budynku 3)",{"$nulls":3},"kWh/(m2*rok)",null,"kWh/(m2*rok)",{"$f":"IF(E27=\"\",\"\",IF(G27=\"\",\"\",ROUND((E27-G27)/E27,2)))","v":""}]
["4.","Zapotrzebowanie na energię pierwotną EP(H+W)  do ogrzewania budynku","Czy wartość została obliczona w audycie energetycznym?",null,{"$f":"IF(D28=\"\",\"\",IF(D28=\"TAK\",\"Należy TUTAJ wpisać wartość z audytu\",IF(E25=\"\",\"Podaj główne źródło ciepła - powyżej\",IF(OR(AND(E25<>'Arkusz 1'!$C$4,G25<>'Arkusz 1'!$C$17),(AND(E25='Arkusz 1'!$C$4,G25='Arkusz 1'!$C$17))),\"Błąd - przedsięwzięcie niezgodne z PPCP\",IF(E27=\"\",\"Należy uzupełnić pole dla EK - powyżej\",E27*(VLOOKUP(E25,'Arkusz 1'!$C$28:$L$35,4,FALSE)))))))","v":""},"kWh/(m2*rok)",{"$f":"IF(D28=\"\",\"\",IF(D28=\"TAK\",\"Należy TUTAJ wpisać wartość z audytu\",IF(G25=\"\",\"Podaj główne źródło ciepła - powyżej\",IF(OR(AND(E25<>'Arkusz 1'!$C$4,G25<>'Arkusz 1'!$C$17),(AND(E25='Arkusz 1'!$C$4,G25='Arkusz 1'!$C$17))),\"Błąd - przedsięwzięcie niezgodne z PPCP\",IF(G27=\"\",\"Należy uzupełnić pole dla EK - powyżej\",IF(G25='Arkusz 1'!$C$17,G27*(VLOOKUP(E25,'Arkusz 1'!$C$28:$L$35,4,FALSE)),IF(OR($G$25='Arkusz 1'!$C$6,$G$25='Arkusz 1'!$C$7,$G$25='Arkusz 1'!$C$8,$G$25='Arkusz 1'!$C$9),MAX(0,G27*(VLOOKUP(G25,'Arkusz 1'!$C$4:$L$17,4,FALSE))-($H$21*750/$E$6)),G27*(VLOOKUP(G25,'Arkusz 1'!$C$4:$L$17,4,FALSE)))))))))","v":""},"kWh/(m2*rok)",{"$f":"IF(OR(E25=\"\",G25=\"\"),\"\",IF(OR(E25=\"\",G25=\"\"),\"\",IF(OR(AND(E25<>'Arkusz 1'!$C$4,G25<>'Arkusz 1'!$C$17),(AND(E25='Arkusz 1'!$C$4,G25='Arkusz 1'!$C$17))),\"Błąd - przedsięwzięcie niezgodne z PPCP\",IF(OR(E28=\"\",E28=\"Należy TUTAJ wpisać wartość z audytu\"),\"\",IFERROR(ROUND((E28-G28)/E28,2),\"\")))))","v":""}]
["5.","Emisja pyłu PM10","Czy wartość została obliczona w audycie energetycznym?",null,{"$f":"IF(D29=\"\",\"\",IF(D29=\"TAK\",\"Należy TUTAJ wpisać wartość z audytu\",IF(E25=\"\",\"Podaj główne źródło ciepła - powyżej\",IF(OR(AND(E25<>'Arkusz 1'!$C$4,G25<>'Arkusz 1'!$C$17),(AND(E25='Arkusz 1'!$C$4,G25='Arkusz 1'!$C$17))),\"Błąd - przedsięwzięcie niezgodne z PPCP\",IF(OR(E28=\"\",E28=\"Należy TUTAJ wpisać wartość z audytu\"),\"Należy uzupełnić pola dla EP - powyżej\",IF(E28=\"Należy uzupełnić pole dla EK - powyżej\",\"Należy uzupełnić pole dla EK - powyżej\",IF(E28=\"Podaj główne źródło ciepła - powyżej\",\"Podaj główne źródło ciepła - powyżej\",(E28*$E$6/1000*(VLOOKUP(E25,'Arkusz 1'!$C$28:$L$35,9,FALSE))))))))))","v":""},"g/rok",{"$f":"IF(D29=\"\",\"\",IF(D29=\"TAK\",\"Należy TUTAJ wpisać wartość z audytu\",IF(G25=\"\",\"Podaj główne źródło ciepła - powyżej\",IF(OR(AND(E25<>'Arkusz 1'!$C$4,G25<>'Arkusz 1'!$C$17),(AND(E25='Arkusz 1'!$C$4,G25='Arkusz 1'!$C$17))),\"Błąd - przedsięwzięcie niezgodne z PPCP\",IF(OR(G28=\"\",G28=\"Należy TUTAJ wpisać wartość z audytu\"),\"Należy uzupełnić pola dla EP - powyżej\",IF(G28=\"Należy uzupełnić pole dla EK - powyżej\",\"Należy uzupełnić pole dla EK - powyżej\",IF(G28=\"Podaj główne źródło ciepła - powyżej\",\"Podaj główne źródło ciepła - powyżej\",(G28*$E$6/1000*(IF(G25='Arkusz 1'!$C$17,(VLOOKUP(E25,'Arkusz 1'!$C$28:$L$35,9,FALSE)),(VLOOKUP(G25,'Arkusz 1'!$C$4:$L$17,9,FALSE))))))))))))","v":""},"g/rok",{"$f":"IF(OR(E25=\"\",G25=\"\"),\"\",IF(OR(AND(E25<>'Arkusz 1'!$C$4,G25<>'Arkusz 1'!$C$17),(AND(E25='Arkusz 1'!$C$4,G25='Arkusz 1'!$C$17))),\"Błąd - przedsięwzięcie niezgodne z PPCP\",IF(OR(E29=\"\",E29=\"Należy TUTAJ wpisać wartość z audytu\",E29=\"Należy uzupełnić wartość EP powyżej\"),\"\",IFERROR(ROUND((E29-G29)/E29,2),\"\"))))","v":""}]
["6.","Emisja benzo(a)pirenu","Czy wartość została obliczona w audycie energetycznym?",null,{"$f":"IF(D30=\"\",\"\",IF(D30=\"TAK\",\"Należy TUTAJ wpisać wartość z audytu\",IF(E25=\"\",\"Podaj główne źródło ciepła - powyżej\",IF(OR(AND(E25<>'Arkusz 1'!$C$4,G25<>'Arkusz 1'!$C$17),(AND(E25='Arkusz 1'!$C$4,G25='Arkusz 1'!$C$17))),\"Błąd - przedsięwzięcie niezgodne z PPCP\",IF(OR(E28=\"\",E28=\"Należy TUTAJ wpisać wartość z audytu\"),\"Należy uzupełnić pola dla EP - powyżej\",IF(E28=\"Należy uzupełnić pole dla EK - powyżej\",\"Należy uzupełnić pole dla EK - powyżej\",IF(E28=\"Podaj główne źródło ciepła - powyżej\",\"Podaj główne źródło ciepła - powyżej\",(E28*$E$6/1000*(VLOOKUP(E25,'Arkusz 1'!$C$28:$L$35,10,FALSE))))))))))","v":""},"g/rok",{"$f":"IF(D30=\"\",\"\",IF(D30=\"TAK\",\"Należy TUTAJ wpisać wartość z audytu\",IF(G25=\"\",\"Podaj główne źródło ciepła - powyżej\",IF(OR(AND(E25<>'Arkusz 1'!$C$4,G25<>'Arkusz 1'!$C$17),(AND(E25='Arkusz 1'!$C$4,G25='Arkusz 1'!$C$17))),\"Błąd - przedsięwzięcie niezgodne z PPCP\",IF(OR(G28=\"\",G28=\"Należy TUTAJ wpisać wartość z audytu\"),\"Należy uzupełnić pola dla EP - powyżej\",IF(G28=\"Należy uzupełnić pole dla EK - powyżej\",\"Należy uzupełnić pole dla EK - powyżej\",IF(G28=\"Podaj główne źródło ciepła - powyżej\",\"Podaj główne źródło ciepła - powyżej\",(G28*$E$6/1000*((IF(G25='Arkusz 1'!$C$17,(VLOOKUP(E25,'Arkusz 1'!$C$28:$L$35,10,FALSE)),(VLOOKUP(G25,'Arkusz 1'!$C$4:$L$17,10,FALSE)))))))))))))","v":""},"g/rok",{"$f":"IF(OR(E25=\"\",G25=\"\"),\"\",IF(OR(AND(E25<>'Arkusz 1'!$C$4,G25<>'Arkusz 1'!$C$17),(AND(E25='Arkusz 1'!$C$4,G25='Arkusz 1'!$C$17))),\"Błąd - przedsięwzięcie niezgodne z PPCP\",IF(OR(E30=\"\",E30=\"Należy TUTAJ wpisać wartość z audytu\",E30=\"Należy uzupełnić wartość EP powyżej\"),\"\",IF(AND(E30=0,G30=0),0,IFERROR(ROUND((E30-G30)/E30,2),\"\")))))","v":""}]
["7.","Emisja CO2","Czy wartość została obliczona w audycie energetycznym?",null,{"$f":"IF(D31=\"\",\"\",IF(D31=\"TAK\",\"Należy TUTAJ wpisać wartość z audytu\",IF(E25=\"\",\"Podaj główne źródło ciepła - powyżej\",IF(OR(AND(E25<>'Arkusz 1'!$C$4,G25<>'Arkusz 1'!$C$17),(AND(E25='Arkusz 1'!$C$4,G25='Arkusz 1'!$C$17))),\"Błąd - przedsięwzięcie niezgodne z PPCP\",IF(E27=\"\",\"Należy uzupełnić pole dla EK - powyżej\",(E27*$E$6/1000*(VLOOKUP(E25,'Arkusz 1'!$C$28:$L$35,8,FALSE))))))))","v":""},"kg/rok",{"$f":"IF(D31=\"\",\"\",IF(D31=\"TAK\",\"Należy TUTAJ wpisać wartość z audytu\",IF(G25=\"\",\"Podaj główne źródło ciepła - powyżej\",IF(OR(AND(E25<>'Arkusz 1'!$C$4,G25<>'Arkusz 1'!$C$17),(AND(E25='Arkusz 1'!$C$4,G25='Arkusz 1'!$C$17))),\"Błąd - przedsięwzięcie niezgodne z PPCP\",IF(G27=\"\",\"Należy uzupełnić pole dla EK - powyżej\",MAX(G27*$E$6/1000*(IF(G25='Arkusz 1'!$C$17,(VLOOKUP(E25,'Arkusz 1'!$C$28:$L$35,8,FALSE)),(VLOOKUP(G25,'Arkusz 1'!$C$4:$L$17,8,FALSE))))-($H$21*750/10^3*'Arkusz 1'!J16),0))))))","v":""},"kg/rok",{"$f":"IF(OR(E25=\"\",G25=\"\"),\"\",IF(OR(AND(E25<>'Arkusz 1'!$C$4,G25<>'Arkusz 1'!$C$17),(AND(E25='Arkusz 1'!$C$4,G25='Arkusz 1'!$C$17))),\"Błąd - przedsięwzięcie niezgodne z PPCP\",IF(OR(E31=\"\",E31=\"Należy TUTAJ wpisać wartość z audytu\",E31=\"Należy uzupełnić wartość EP powyżej\"),\"\",IFERROR(ROUND((E31-G31)/E31,2),\"\"))))","v":""}]
["IV. Wyliczenie efektów ekologicznych"]
[{"$nulls":7},"Wartość","Jednostka"]
["1.","Ograniczenie zużycia energii użytkowej (∆EU)",{"$nulls":5},{"$f":"IF(OR(E26=\"\",G26=\"\"),\"\",IFERROR((E26-G26)*$E$6/10^3,\"\"))","v":""},"MWh/rok"]
["2.","Ograniczenie zużycia energii końcowej (∆EK)",{"$nulls":5},{"$f":"IF(OR(E27=\"\",G27=\"\"),\"\",IFERROR((E27-G27)*E6/10^3,\"\"))","v":""},"MWh/rok"]
["3.","Ograniczenie zużycia energii pierwotnej (∆EP)",{"$nulls":5},{"$f":"IFERROR((E28-G28)*E6/10^3,\"\")","v":""},"MWh/rok"]
["4.","Ograniczenie emisji pyłu PM10",{"$nulls":5},{"$f":"IFERROR((E29-G29)/10^6,\"\")","v":""},"Mg/rok"]
["5.","Ograniczenie emisji benzo(a)pirenu",{"$nulls":5},{"$f":"IFERROR((E30-G30)/10^6,\"\")","v":""},"Mg/rok"]
["6.","Zmniejszenie emisji CO2",{"$nulls":5},{"$f":"IFERROR((E31-G31)/10^3,\"\")","v":""},"Mg/rok"]
["7.","Dodatkowa zdolność wytwarzania energii elektrycznej z zainstalowanych mikroinstalacji fotowoltaicznych",{"$nulls":5},{"$f":"IFERROR(H21/1000,\"\")","v":{"v":0,"d":"0.000"}},"MWe"]
["V. Oświadczenia Audytora"]
["1.","Oświadczam, że wykonałem/wykonałam audyt energetyczny dotyczący budynku mieszkalnego / lokalu mieszkalnego wskazanego w części I  niniejszego Dokumentu i przekazałem/przekazałam go Beneficjentowi w dniu:"]
["2. ","Oświadczam, że dane wpisane w niniejszym Dokumencie podsumowującym audyt energetyczny są zgodne z audytem energetycznym, o którym mowa w Oświadczeniu nr 1."]
["VI. Uwagi, komentarze, podpis"]
["Uwagi/komentarze:",{"$nulls":3},"Imię, nazwisko, data i podpis Audytora:"]
[]
[]
[]
["Objaśnienia"]
["1) W tabeli należy wpisać rodzaje zadań (ulepszeń, usprawnień) wskazanych przez audytora do realizacji na podstawie wariantu optymalnego"]
["2) W audycie jest to wskaźnik rocznego zapotrzebowania na ciepło do ogrzewania budynku (bez uwzględnienia sprawności systemu grzewczego i przerw w ogrzewaniu) [kWh/(m2*rok)]"]
["3) W audycie jest to wskaźnik rocznego zapotrzebowania na ciepło do ogrzewania budynku (z uwzględnienia sprawności systemu grzewczego i przerw w ogrzewaniu) [kWh/(m2*rok)]"]
[]
["WALIDACJA"]
[{"$f":"IF(E28=\"Błąd - przedsięwzięcie niezgodne z PPCP\",\"Błąd - przedsięwzięcie niezgodne z PPCP\",IF(OR(E25=\"\",E26=\"\",E27=\"\",G25=\"\",G26=\"\",G27=\"\",I26=\"\"),\"Brak możliwości wykonania walidacji - brak danych dot. redukcji EU lub EK.\",IF(G26>80,IF(I26<0.4,\"Na podstawie niniejszego Dokumentu podsumowującego audyt energetyczny nie jest możliwe przyznanie dotacji do przedsięwzięcia z kompleksową termomodernizacją budynku/lokalu mieszkalnego.\",\"Na podstawie niniejszego Dokumentu podsumowującego audyt energetyczny stwierdza się możliwość przyznania dotacji do przedsięwzięcia z kompleksową termomodernizacją budynku/lokalu mieszkalnego.\"),\"Na podstawie niniejszego Dokumentu podsumowującego audyt energetyczny stwierdza się możliwość przyznania dotacji do przedsięwzięcia z kompleksową termomodernizacją budynku/lokalu mieszkalnego.\")))","v":"Brak możliwości wykonania walidacji - brak danych dot. redukcji EU lub EK."}]

{"sheet":"Arkusz 1","index":2,"n_rows":35,"n_cols":12,"rows_kept":35,"merged":[[0,0,2,0],[0,1,2,1],[0,2,2,2],[0,3,2,3],[0,4,2,4],[0,5,2,5],[0,6,0,8],[0,9,0,11],[4,0,15,0],[18,1,18,11],[19,1,19,11],[20,1,20,11],[21,1,21,11],[24,2,26,2],[24,3,26,3],[24,4,26,4],[24,5,26,5],[24,6,24,8],[24,9,24,11]]}
["Przedsięwzięcie dot. źródła ciepła","Lp.","Źródło ciepła","paliwo:","uśredniona sezonowa sprawność źródła ciepła 1)","współczynnik nakładu nieodnawialnej energii pierwotnej 2)","Wskaźniki emisji zanieczyszczeń - przeliczone na GJ",null,null,"Wskaźniki emisji zanieczyszczeń - przeliczenie na MWh (do sporządzenia obliczeń metodą wskaźnikową)"]
[{"$nulls":6},"CO2 3)","PM10 4)","BaP 4)","CO2","PM10","BaP"]
[{"$nulls":6},"kg/GJ","g/GJ","g/GJ","kg/MWh","g/MWh","g/MWh"]
["Stary piec:",0,"Istniejące źródło ciepła na paliwo stałe - \"kopciuch\"","paliwo stałe",0.65,1.1,{"v":94.77,"d":"94.770"},{"v":427,"d":"427.000"},{"v":0.28,"d":"0.280"},{"$f":"G4*3.6","v":{"v":341.17199999999997,"d":"341.172"}},{"$f":"H4*3.6","v":{"v":1537.2,"d":"1,537.200"}},{"$f":"I4*3.6","v":{"v":1.0080000000000002,"d":"1.008"}}]
["Wymiana żródła ciepła na żródło zgodne z Programem Czyste Powietrze:",1,"Podłączenie do sieci ciepłowniczej wraz z przyłączem","sieć ciepłownicza",0.95,1.3,{"v":93.49,"d":"93.490"},null,null,{"$f":"G5*3.6","v":{"v":336.56399999999996,"d":"336.564"}}]
[null,2,"Pompa ciepła powietrze/woda","energia elektryczna",2.8,3,{"v":193.88888888888889,"d":"193.889"},null,null,{"v":698,"d":"698.000"}]
[null,3,"Pompa ciepła powietrze/woda o podwyższonej klasie efektywności energetycznej","energia elektryczna",2.9,3,{"v":193.88888888888889,"d":"193.889"},null,null,{"v":698,"d":"698.000"}]
[null,4,"Pompa ciepła typu powietrze/powietrze","energia elektryczna",2.2,3,{"v":193.88888888888889,"d":"193.889"},null,null,{"v":698,"d":"698.000"}]
[null,5,"Gruntowa pompa ciepła o podwyższonej klasie efektywności energetycznej","energia elektryczna",3.9,3,{"v":193.88888888888889,"d":"193.889"},null,null,{"v":698,"d":"698.000"}]
[null,6,"Kocioł gazowy kondensacyjny","gaz ziemny",0.95,1.1,{"v":55.44,"d":"55.440"},{"v":0.3,"d":"0.300"},null,{"$f":"G10*3.6","v":199.584},{"v":1.08,"d":"1.080"}]
[null,7,"Kotłownia gazowa (w tym: przyłącze gazowe i instalacja)","gaz ziemny",0.95,1.1,{"v":55.44,"d":"55.440"},{"v":0.3,"d":"0.300"},null,199.584,{"v":1.08,"d":"1.080"}]
[null,8,"Kocioł olejowy kondensacyjny","olej opałowy",0.95,1.1,{"v":76.56,"d":"76.560"},{"v":2,"d":"2.000"},{"$f":"0.12/1000","v":{"v":1.1999999999999999E-4,"d":"0.000120"}},{"v":275.61600000000004,"d":"275.616"},{"v":7.2,"d":"7.200"},{"$f":"I12*3.6","v":0.000432}]
[null,10,"Kocioł zagazowywujący drewno","biomasa",0.85,1.1,{"v":112,"d":"112.000"},{"v":16,"d":"16.000"},null,{"v":0,"d":"0.000"},{"v":57.6,"d":"57.600"}]
[null,11,"Kocioł na pellet drzewny","pellet",0.85,0.2,{"v":112,"d":"112.000"},{"v":16,"d":"16.000"},null,{"v":0,"d":"0.000"},{"v":57.6,"d":"57.600"}]
[null,12,"Kocioł na pellet drzewny o podwyższonym standardzie","pellet",0.85,0.2,{"v":112,"d":"112.000"},{"v":16,"d":"16.000"},null,{"v":0,"d":"0.000"},{"v":57.6,"d":"57.600"}]
[null,13,"Ogrzewanie elektryczne","energia elektryczna",1,3,{"$f":"J16/3.6","v":{"v":193.88888888888889,"d":"193.889"}},null,null,{"v":698,"d":"698.000"}]
["Brak wymiany źródła",0,"Nie obejmowało wymiany źródła ciepła"]
[null,9,"Kocioł na węgiel z automatycznym podajnikiem","paliwo stałe",0.85,1.1,{"v":94.77,"d":"94.770"},{"v":18,"d":"18.000"},null,{"$f":"G18*3.6","v":{"v":341.17199999999997,"d":"341.172"}},{"v":64.8,"d":"64.800"}]
["1)","Na podstawie dostępnej literatury"]
["2)","Zgodnie z Rozporządzeniem Ministra Infrastruktury i Rozwoju z dnia 27 lutego 2015 r. w sprawie metodologii wyznaczania charakterystyki energetycznej budynku lub części budynku oraz świadectw charakterystyki energetycznej."]
["3)","Zgodnie z opracowaniem KOBIZE: \"Wartości opałowe (WO) i wskaźniki emisji CO2 (WE) w roku 2019 do raportowania w ramach Systemu Handlu Uprawnieniami do Emisji za rok 2022\" z grudnia 2021 r. lub WSKAŹNIKI EMISYJNOŚCI CO2, SO2, NOx, CO i pyłu całkowitego DLA ENERGII ELEKTRYCZNEJ na podstawie informacji zawartych w Krajowej bazie o emisjach gazów cieplarnianych i innych substancji za 2020 rok"]
["4)","Zgodnie z zestawienie tabelarycznym Wskaźniki emisji zanieczyszczeń powietrza emitowanych z indywidualnych źródeł ciepła opracowane przez Instytut Chemicznej Przeróbki Węgla (wartości wskaźników zostały zaktualizowane w związku z pracą zrealizowaną przez Instytut Chemicznej Przeróbki Węgla na zlecenie IOŚ-PIB KOBiZE. Aktualizacja dokonywana w zależności od zmian prawnych i gospodarczych). (dane dla pozycji: 8, 21, 22, 33,34) Dane na dzień: 23 czerwca 2021. Dostęp: https://dane.gov.pl/pl/dataset/2182/resource/31256/table"]
[]
["TAK"]
["NIE",null,"Źródło przed termo","paliwo:","uśredniona sezonowa sprawność źródła ciepła 1)","współczynnik nakładu nieodnawialnej energii pierwotnej 2)","Wskaźniki emisji zanieczyszczeń - przeliczone na GJ",null,null,"Wskaźniki emisji zanieczyszczeń - przeliczenie na MWh (do sporządzenia obliczeń metodą wskaźnikową)"]
[{"$nulls":6},"CO2 3)","PM10 4)","BaP 4)","CO2","PM10","BaP"]
[{"$nulls":6},"kg/GJ","g/GJ","g/GJ","kg/MWh","g/MWh","g/MWh"]
[null,null,"Istniejące źródło ciepła na paliwo stałe - \"kopciuch\"",{"$f":"VLOOKUP($C28,$C$4:$L$18,2,FALSE)","v":"paliwo stałe"},{"$f":"VLOOKUP($C28,$C$4:$L$18,3,FALSE)","v":0.65},{"$f":"VLOOKUP($C28,$C$4:$L$18,4,FALSE)","v":1.1},{"$f":"VLOOKUP($C28,$C$4:$L$18,5,FALSE)","v":{"v":94.77,"d":"94.770"}},{"$f":"VLOOKUP($C28,$C$4:$L$18,6,FALSE)","v":{"v":427,"d":"427.000"}},{"$f":"VLOOKUP($C28,$C$4:$L$18,7,FALSE)","v":{"v":0.28,"d":"0.280"}},{"$f":"VLOOKUP($C28,$C$4:$L$18,8,FALSE)","v":{"v":341.17199999999997,"d":"341.172"}},{"$f":"VLOOKUP($C28,$C$4:$L$18,9,FALSE)","v":{"v":1537.2,"d":"1,537.200"}},{"$f":"VLOOKUP($C28,$C$4:$L$18,10,FALSE)","v":{"v":1.0080000000000002,"d":"1.008"}}]
[null,null,"Podłączenie do sieci ciepłowniczej",{"$f":"VLOOKUP(C5,$C$4:$L$18,2,FALSE)","v":"sieć ciepłownicza"},{"$f":"VLOOKUP(C5,$C$4:$L$18,3,FALSE)","v":0.95},{"$f":"VLOOKUP(C5,$C$4:$L$18,4,FALSE)","v":1.3},{"$f":"VLOOKUP(C5,$C$4:$L$18,5,FALSE)","v":{"v":93.49,"d":"93.490"}},{"$f":"VLOOKUP(C5,$C$4:$L$18,6,FALSE)","v":{"v":0,"d":"0.000"}},{"$f":"VLOOKUP(C5,$C$4:$L$18,7,FALSE)","v":{"v":0,"d":"0.000"}},{"$f":"VLOOKUP(C5,$C$4:$L$18,8,FALSE)","v":{"v":336.56399999999996,"d":"336.564"}},{"$f":"VLOOKUP(C5,$C$4:$L$18,9,FALSE)","v":{"v":0,"d":"0.000"}},{"$f":"VLOOKUP(C5,$C$4:$L$18,10,FALSE)","v":{"v":0,"d":"0.000"}}]
[null,null,"Pompa ciepła",{"$f":"VLOOKUP(C6,$C$4:$L$18,2,FALSE)","v":"energia elektryczna"},{"$f":"VLOOKUP(C6,$C$4:$L$18,3,FALSE)","v":2.8},{"$f":"VLOOKUP(C6,$C$4:$L$18,4,FALSE)","v":3},{"$f":"VLOOKUP(C6,$C$4:$L$18,5,FALSE)","v":{"v":193.88888888888889,"d":"193.889"}},{"$f":"VLOOKUP(C6,$C$4:$L$18,6,FALSE)","v":{"v":0,"d":"0.000"}},{"$f":"VLOOKUP(C6,$C$4:$L$18,7,FALSE)","v":{"v":0,"d":"0.000"}},{"$f":"VLOOKUP(C6,$C$4:$L$18,8,FALSE)","v":{"v":698,"d":"698.000"}},{"$f":"VLOOKUP(C6,$C$4:$L$18,9,FALSE)","v":{"v":0,"d":"0.000"}},{"$f":"VLOOKUP(C6,$C$4:$L$18,10,FALSE)","v":{"v":0,"d":"0.000"}}]
[null,null,"Kocioł gazowy",{"$f":"VLOOKUP(C10,$C$4:$L$18,2,FALSE)","v":"gaz ziemny"},{"$f":"VLOOKUP(C10,$C$4:$L$18,3,FALSE)","v":0.95},{"$f":"VLOOKUP(C10,$C$4:$L$18,4,FALSE)","v":1.1},{"$f":"VLOOKUP(C10,$C$4:$L$18,5,FALSE)","v":{"v":55.44,"d":"55.440"}},{"$f":"VLOOKUP(C10,$C$4:$L$18,6,FALSE)","v":{"v":0.3,"d":"0.300"}},{"$f":"VLOOKUP(C10,$C$4:$L$18,7,FALSE)","v":{"v":0,"d":"0.000"}},{"$f":"VLOOKUP(C10,$C$4:$L$18,8,FALSE)","v":199.584},{"$f":"VLOOKUP(C10,$C$4:$L$18,9,FALSE)","v":{"v":1.08,"d":"1.080"}},{"$f":"VLOOKUP(C10,$C$4:$L$18,10,FALSE)","v":{"v":0,"d":"0.000"}}]
[null,null,"Kocioł olejowy",{"$f":"VLOOKUP(C12,$C$4:$L$18,2,FALSE)","v":"olej opałowy"},{"$f":"VLOOKUP(C12,$C$4:$L$18,3,FALSE)","v":0.95},{"$f":"VLOOKUP(C12,$C$4:$L$18,4,FALSE)","v":1.1},{"$f":"VLOOKUP(C12,$C$4:$L$18,5,FALSE)","v":{"v":76.56,"d":"76.560"}},{"$f":"VLOOKUP(C12,$C$4:$L$18,6,FALSE)","v":{"v":2,"d":"2.000"}},{"$f":"VLOOKUP(C12,$C$4:$L$18,7,FALSE)","v":{"v":1.1999999999999999E-4,"d":"0.000"}},{"$f":"VLOOKUP(C12,$C$4:$L$18,8,FALSE)","v":{"v":275.61600000000004,"d":"275.616"}},{"$f":"VLOOKUP(C12,$C$4:$L$18,9,FALSE)","v":{"v":7.2,"d":"7.200"}},{"$f":"VLOOKUP(C12,$C$4:$L$18,10,FALSE)","v":{"v":0.000432,"d":"0.000"}}]
[null,null,"Kocioł na węgiel minimum 5 klasy",{"$f":"VLOOKUP(C18,$C$4:$L$18,2,FALSE)","v":"paliwo stałe"},{"$f":"VLOOKUP(C18,$C$4:$L$18,3,FALSE)","v":0.85},{"$f":"VLOOKUP(C18,$C$4:$L$18,4,FALSE)","v":1.1},{"$f":"VLOOKUP(C18,$C$4:$L$18,5,FALSE)","v":{"v":94.77,"d":"94.770"}},{"$f":"VLOOKUP(C18,$C$4:$L$18,6,FALSE)","v":{"v":18,"d":"18.000"}},{"$f":"VLOOKUP(C18,$C$4:$L$18,7,FALSE)","v":{"v":0,"d":"0.000"}},{"$f":"VLOOKUP(C18,$C$4:$L$18,8,FALSE)","v":{"v":341.17199999999997,"d":"341.172"}},{"$f":"VLOOKUP(C18,$C$4:$L$18,9,FALSE)","v":{"v":64.8,"d":"64.800"}},{"$f":"VLOOKUP(C18,$C$4:$L$18,10,FALSE)","v":{"v":0,"d":"0.000"}}]
[null,null,"Kocioł na biomasę minimum 5 klasy",{"$f":"VLOOKUP(C13,$C$4:$L$18,2,FALSE)","v":"biomasa"},{"$f":"VLOOKUP(C13,$C$4:$L$18,3,FALSE)","v":0.85},{"$f":"VLOOKUP(C13,$C$4:$L$18,4,FALSE)","v":1.1},{"$f":"VLOOKUP(C13,$C$4:$L$18,5,FALSE)","v":{"v":112,"d":"112.000"}},{"$f":"VLOOKUP(C13,$C$4:$L$18,6,FALSE)","v":{"v":16,"d":"16.000"}},{"$f":"VLOOKUP(C13,$C$4:$L$18,7,FALSE)","v":{"v":0,"d":"0.000"}},{"$f":"VLOOKUP(C13,$C$4:$L$18,8,FALSE)","v":{"v":0,"d":"0.000"}},{"$f":"VLOOKUP(C13,$C$4:$L$18,9,FALSE)","v":{"v":57.6,"d":"57.600"}},{"$f":"VLOOKUP(C13,$C$4:$L$18,10,FALSE)","v":{"v":0,"d":"0.000"}}]
[null,null,"Ogrzewanie elektryczne",{"$f":"VLOOKUP($C35,$C$4:$L$18,2,FALSE)","v":"energia elektryczna"},{"$f":"VLOOKUP($C35,$C$4:$L$18,3,FALSE)","v":1},{"$f":"VLOOKUP($C35,$C$4:$L$18,4,FALSE)","v":3},{"$f":"VLOOKUP($C35,$C$4:$L$18,5,FALSE)","v":{"v":193.88888888888889,"d":"193.889"}},{"$f":"VLOOKUP($C35,$C$4:$L$18,6,FALSE)","v":{"v":0,"d":"0.000"}},{"$f":"VLOOKUP($C35,$C$4:$L$18,7,FALSE)","v":{"v":0,"d":"0.000"}},{"$f":"VLOOKUP($C35,$C$4:$L$18,8,FALSE)","v":{"v":698,"d":"698.000"}},{"$f":"VLOOKUP($C35,$C$4:$L$18,9,FALSE)","v":{"v":0,"d":"0.000"}},{"$f":"VLOOKUP($C35,$C$4:$L$18,10,FALSE)","v":{"v":0,"d":"0.000"}}]